{"text_format":"3","workbook":"xlsx","n_sheets":3,"sheets":["Data affärsmöjligheter","Säljprognos ","Månatlig viktad prognos"],"not_rendered":{"charts":1,"defined_names":10},"read":"whole","date_system":"1900"}

{"sheet":"Data affärsmöjligheter","index":0,"n_rows":9,"n_cols":10,"rows_kept":9}
[null,"Företagsnamn"]
[null,"Detaljerad spårning av affärsmöjligheter"]
[null,{"$f":"TODAY()","v":"2022-04-06"}]
[{"$nulls":8},{"$f":"Företagsnamn","v":"Företagsnamn"},"KONFIDENTIELLT"]
[null,"Namn affärsmöjlighet","Kontakt","Affärsmöjlighet \nKälla","Affärsmöjlighet \nRegion","Affärsmöjlighet \nTyp","Potentiell affärsmöjlighet","Möjlighet \ntill försäljning","Prognos \nStäng","Viktad \nPrognos"]
[null,"A. Datum Corporation",{"$nulls":3},"Strategisk",{"v":300000,"d":"300,000.00 kr"},{"v":0.9,"d":"90%"},"Januari",{"$f":"IFERROR(IF(DataAffärsmöjligheter[[#This Row],[Möjlighet \ntill försäljning]]<>\"\",DataAffärsmöjligheter[[#This Row],[Möjlighet \ntill försäljning]]*DataAffärsmöjligheter[[#This Row],[Potentiell affärsmöjlighet]],\"\"),\"\")","v":{"v":270000,"d":"270,000.00 kr"}}]
[null,"Adventure Works",{"$nulls":3},"Strategisk",{"v":200000,"d":"200,000.00 kr"},{"v":0.1,"d":"10%"},"Februari",{"$f":"IFERROR(IF(DataAffärsmöjligheter[[#This Row],[Möjlighet \ntill försäljning]]<>\"\",DataAffärsmöjligheter[[#This Row],[Möjlighet \ntill försäljning]]*DataAffärsmöjligheter[[#This Row],[Potentiell affärsmöjlighet]],\"\"),\"\")","v":{"v":20000,"d":"20,000.00 kr"}}]
[null,"Alpine Ski House",{"$nulls":3},"Taktisk",{"v":100000,"d":"100,000.00 kr"},{"v":0.2,"d":"20%"},"Mars",{"$f":"IFERROR(IF(DataAffärsmöjligheter[[#This Row],[Möjlighet \ntill försäljning]]<>\"\",DataAffärsmöjligheter[[#This Row],[Möjlighet \ntill försäljning]]*DataAffärsmöjligheter[[#This Row],[Potentiell affärsmöjlighet]],\"\"),\"\")","v":{"v":20000,"d":"20,000.00 kr"}}]
[null,"Summa",{"$nulls":4},{"$f":"SUBTOTAL(109,DataAffärsmöjligheter[Potentiell affärsmöjlighet])","v":{"v":600000,"d":"600,000.00 kr"}},null,null,{"$f":"SUBTOTAL(109,DataAffärsmöjligheter[Viktad \nPrognos])","v":{"v":310000,"d":"310,000.00 kr"}}]

{"sheet":"Säljprognos ","index":1,"n_rows":21,"n_cols":14,"rows_kept":21,"merged":[[3,12,3,13]]}
[null,{"$f":"Företagsnamn","v":"Företagsnamn"}]
[null,"Säljprognos"]
[null,{"$f":"Spårningsdatum","v":"2022-04-06"}]
[{"$nulls":11},{"$f":"Företagsnamn","v":"Företagsnamn"},"KONFIDENTIELLT"]
[null,"Namn affärsmöjlighet","Januari \nPrognos","Februari \nPrognos","Mars \nPrognos","April \nPrognos","Maj \nPrognos","Juni \nPrognos","Juli \nPrognos","Augusti \nPrognos","September \nPrognos","Oktober \nPrognos","November \nPrognos","December \nPrognos"]
[null,{"$f":"IFERROR(IF(AND(DataAffärsmöjligheter[[#This Row],[Namn affärsmöjlighet]] <> \"\", ROW(Säljprognos[Namn affärsmöjlighet])<>SistaPost),DataAffärsmöjligheter[Namn affärsmöjlighet], \"\"),\"\")","v":"A. Datum Corporation"},{"$f":"IFERROR(IF(DataAffärsmöjligheter[[#This Row],[Prognos \nStäng]] <>\"\",IF(DataAffärsmöjligheter[[#This Row],[Prognos \nStäng]]= \"Januari\",DataAffärsmöjligheter[Viktad \nPrognos],0),\"\"),\"\")","v":{"v":270000,"d":"270,000 kr"}},{"$f":"IFERROR(IF(DataAffärsmöjligheter[[#This Row],[Prognos \nStäng]] <>\"\",IF(DataAffärsmöjligheter[[#This Row],[Prognos \nStäng]] = \"Februari\",DataAffärsmöjligheter[Viktad \nPrognos],0),\"\"),\"\")","v":{"v":0,"d":"0 kr"}},{"$f":"IFERROR(IF(DataAffärsmöjligheter[[#This Row],[Prognos \nStäng]] <>\"\",IF(DataAffärsmöjligheter[[#This Row],[Prognos \nStäng]] = \"Mars\",DataAffärsmöjligheter[Viktad \nPrognos],0),\"\"),\"\")","v":{"v":0,"d":"0 kr"}},{"$f":"IFERROR(IF(DataAffärsmöjligheter[[#This Row],[Prognos \nStäng]] <>\"\",IF(DataAffärsmöjligheter[[#This Row],[Prognos \nStäng]] = \"April\",DataAffärsmöjligheter[Viktad \nPrognos],0),\"\"),\"\")","v":{"v":0,"d":"0 kr"}},{"$f":"IFERROR(IF(DataAffärsmöjligheter[[#This Row],[Prognos \nStäng]] <>\"\",IF(DataAffärsmöjligheter[[#This Row],[Prognos \nStäng]] = \"Maj\",DataAffärsmöjligheter[Viktad \nPrognos],0),\"\"),\"\")","v":{"v":0,"d":"0 kr"}},{"$f":"IFERROR(IF(DataAffärsmöjligheter[[#This Row],[Prognos \nStäng]] <>\"\",IF(DataAffärsmöjligheter[[#This Row],[Prognos \nStäng]] = \"Juni\",DataAffärsmöjligheter[Viktad \nPrognos],0),\"\"),\"\")","v":{"v":0,"d":"0 kr"}},{"$f":"IFERROR(IF(DataAffärsmöjligheter[[#This Row],[Prognos \nStäng]] <>\"\",IF(DataAffärsmöjligheter[[#This Row],[Prognos \nStäng]] = \"Juli\",DataAffärsmöjligheter[Viktad \nPrognos],0),\"\"),\"\")","v":{"v":0,"d":"0 kr"}},{"$f":"IFERROR(IF(DataAffärsmöjligheter[[#This Row],[Prognos \nStäng]] <>\"\",IF(DataAffärsmöjligheter[[#This Row],[Prognos \nStäng]] = \"Augusti\",DataAffärsmöjligheter[Viktad \nPrognos],0),\"\"),\"\")","v":{"v":0,"d":"0 kr"}},{"$f":"IFERROR(IF(DataAffärsmöjligheter[[#This Row],[Prognos \nStäng]] <>\"\",IF(DataAffärsmöjligheter[[#This Row],[Prognos \nStäng]] = \"September\",DataAffärsmöjligheter[Viktad \nPrognos],0),\"\"),\"\")","v":{"v":0,"d":"0 kr"}},{"$f":"IFERROR(IF(DataAffärsmöjligheter[[#This Row],[Prognos \nStäng]] <>\"\",IF(DataAffärsmöjligheter[[#This Row],[Prognos \nStäng]] = \"Oktober\",DataAffärsmöjligheter[Viktad \nPrognos],0),\"\"),\"\")","v":{"v":0,"d":"0 kr"}},{"$f":"IFERROR(IF(DataAffärsmöjligheter[[#This Row],[Prognos \nStäng]] <>\"\",IF(DataAffärsmöjligheter[[#This Row],[Prognos \nStäng]] = \"November\",DataAffärsmöjligheter[Viktad \nPrognos],0),\"\"),\"\")","v":{"v":0,"d":"0 kr"}},{"$f":"IFERROR(IF(DataAffärsmöjligheter[[#This Row],[Prognos \nStäng]] <>\"\",IF(DataAffärsmöjligheter[[#This Row],[Prognos \nStäng]] = \"December\",DataAffärsmöjligheter[Viktad \nPrognos],0),\"\"),\"\")","v":{"v":0,"d":"0 kr"}}]
[null,{"$f":"IFERROR(IF(AND(DataAffärsmöjligheter[[#This Row],[Namn affärsmöjlighet]] <> \"\", ROW(Säljprognos[Namn affärsmöjlighet])<>SistaPost),DataAffärsmöjligheter[Namn affärsmöjlighet], \"\"),\"\")","v":"Adventure Works"},{"$f":"IFERROR(IF(DataAffärsmöjligheter[[#This Row],[Prognos \nStäng]] <>\"\",IF(DataAffärsmöjligheter[[#This Row],[Prognos \nStäng]]= \"Januari\",DataAffärsmöjligheter[Viktad \nPrognos],0),\"\"),\"\")","v":{"v":0,"d":"0 kr"}},{"$f":"IFERROR(IF(DataAffärsmöjligheter[[#This Row],[Prognos \nStäng]] <>\"\",IF(DataAffärsmöjligheter[[#This Row],[Prognos \nStäng]] = \"Februari\",DataAffärsmöjligheter[Viktad \nPrognos],0),\"\"),\"\")","v":{"v":20000,"d":"20,000 kr"}},{"$f":"IFERROR(IF(DataAffärsmöjligheter[[#This Row],[Prognos \nStäng]] <>\"\",IF(DataAffärsmöjligheter[[#This Row],[Prognos \nStäng]] = \"Mars\",DataAffärsmöjligheter[Viktad \nPrognos],0),\"\"),\"\")","v":{"v":0,"d":"0 kr"}},{"$f":"IFERROR(IF(DataAffärsmöjligheter[[#This Row],[Prognos \nStäng]] <>\"\",IF(DataAffärsmöjligheter[[#This Row],[Prognos \nStäng]] = \"April\",DataAffärsmöjligheter[Viktad \nPrognos],0),\"\"),\"\")","v":{"v":0,"d":"0 kr"}},{"$f":"IFERROR(IF(DataAffärsmöjligheter[[#This Row],[Prognos \nStäng]] <>\"\",IF(DataAffärsmöjligheter[[#This Row],[Prognos \nStäng]] = \"Maj\",DataAffärsmöjligheter[Viktad \nPrognos],0),\"\"),\"\")","v":{"v":0,"d":"0 kr"}},{"$f":"IFERROR(IF(DataAffärsmöjligheter[[#This Row],[Prognos \nStäng]] <>\"\",IF(DataAffärsmöjligheter[[#This Row],[Prognos \nStäng]] = \"Juni\",DataAffärsmöjligheter[Viktad \nPrognos],0),\"\"),\"\")","v":{"v":0,"d":"0 kr"}},{"$f":"IFERROR(IF(DataAffärsmöjligheter[[#This Row],[Prognos \nStäng]] <>\"\",IF(DataAffärsmöjligheter[[#This Row],[Prognos \nStäng]] = \"Juli\",DataAffärsmöjligheter[Viktad \nPrognos],0),\"\"),\"\")","v":{"v":0,"d":"0 kr"}},{"$f":"IFERROR(IF(DataAffärsmöjligheter[[#This Row],[Prognos \nStäng]] <>\"\",IF(DataAffärsmöjligheter[[#This Row],[Prognos \nStäng]] = \"Augusti\",DataAffärsmöjligheter[Viktad \nPrognos],0),\"\"),\"\")","v":{"v":0,"d":"0 kr"}},{"$f":"IFERROR(IF(DataAffärsmöjligheter[[#This Row],[Prognos \nStäng]] <>\"\",IF(DataAffärsmöjligheter[[#This Row],[Prognos \nStäng]] = \"September\",DataAffärsmöjligheter[Viktad \nPrognos],0),\"\"),\"\")","v":{"v":0,"d":"0 kr"}},{"$f":"IFERROR(IF(DataAffärsmöjligheter[[#This Row],[Prognos \nStäng]] <>\"\",IF(DataAffärsmöjligheter[[#This Row],[Prognos \nStäng]] = \"Oktober\",DataAffärsmöjligheter[Viktad \nPrognos],0),\"\"),\"\")","v":{"v":0,"d":"0 kr"}},{"$f":"IFERROR(IF(DataAffärsmöjligheter[[#This Row],[Prognos \nStäng]] <>\"\",IF(DataAffärsmöjligheter[[#This Row],[Prognos \nStäng]] = \"November\",DataAffärsmöjligheter[Viktad \nPrognos],0),\"\"),\"\")","v":{"v":0,"d":"0 kr"}},{"$f":"IFERROR(IF(DataAffärsmöjligheter[[#This Row],[Prognos \nStäng]] <>\"\",IF(DataAffärsmöjligheter[[#This Row],[Prognos \nStäng]] = \"December\",DataAffärsmöjligheter[Viktad \nPrognos],0),\"\"),\"\")","v":{"v":0,"d":"0 kr"}}]
[null,{"$f":"IFERROR(IF(AND(DataAffärsmöjligheter[[#This Row],[Namn affärsmöjlighet]] <> \"\", ROW(Säljprognos[Namn affärsmöjlighet])<>SistaPost),DataAffärsmöjligheter[Namn affärsmöjlighet], \"\"),\"\")","v":"Alpine Ski House"},{"$f":"IFERROR(IF(DataAffärsmöjligheter[[#This Row],[Prognos \nStäng]] <>\"\",IF(DataAffärsmöjligheter[[#This Row],[Prognos \nStäng]]= \"Januari\",DataAffärsmöjligheter[Viktad \nPrognos],0),\"\"),\"\")","v":{"v":0,"d":"0 kr"}},{"$f":"IFERROR(IF(DataAffärsmöjligheter[[#This Row],[Prognos \nStäng]] <>\"\",IF(DataAffärsmöjligheter[[#This Row],[Prognos \nStäng]] = \"Februari\",DataAffärsmöjligheter[Viktad \nPrognos],0),\"\"),\"\")","v":{"v":0,"d":"0 kr"}},{"$f":"IFERROR(IF(DataAffärsmöjligheter[[#This Row],[Prognos \nStäng]] <>\"\",IF(DataAffärsmöjligheter[[#This Row],[Prognos \nStäng]] = \"Mars\",DataAffärsmöjligheter[Viktad \nPrognos],0),\"\"),\"\")","v":{"v":20000,"d":"20,000 kr"}},{"$f":"IFERROR(IF(DataAffärsmöjligheter[[#This Row],[Prognos \nStäng]] <>\"\",IF(DataAffärsmöjligheter[[#This Row],[Prognos \nStäng]] = \"April\",DataAffärsmöjligheter[Viktad \nPrognos],0),\"\"),\"\")","v":{"v":0,"d":"0 kr"}},{"$f":"IFERROR(IF(DataAffärsmöjligheter[[#This Row],[Prognos \nStäng]] <>\"\",IF(DataAffärsmöjligheter[[#This Row],[Prognos \nStäng]] = \"Maj\",DataAffärsmöjligheter[Viktad \nPrognos],0),\"\"),\"\")","v":{"v":0,"d":"0 kr"}},{"$f":"IFERROR(IF(DataAffärsmöjligheter[[#This Row],[Prognos \nStäng]] <>\"\",IF(DataAffärsmöjligheter[[#This Row],[Prognos \nStäng]] = \"Juni\",DataAffärsmöjligheter[Viktad \nPrognos],0),\"\"),\"\")","v":{"v":0,"d":"0 kr"}},{"$f":"IFERROR(IF(DataAffärsmöjligheter[[#This Row],[Prognos \nStäng]] <>\"\",IF(DataAffärsmöjligheter[[#This Row],[Prognos \nStäng]] = \"Juli\",DataAffärsmöjligheter[Viktad \nPrognos],0),\"\"),\"\")","v":{"v":0,"d":"0 kr"}},{"$f":"IFERROR(IF(DataAffärsmöjligheter[[#This Row],[Prognos \nStäng]] <>\"\",IF(DataAffärsmöjligheter[[#This Row],[Prognos \nStäng]] = \"Augusti\",DataAffärsmöjligheter[Viktad \nPrognos],0),\"\"),\"\")","v":{"v":0,"d":"0 kr"}},{"$f":"IFERROR(IF(DataAffärsmöjligheter[[#This Row],[Prognos \nStäng]] <>\"\",IF(DataAffärsmöjligheter[[#This Row],[Prognos \nStäng]] = \"September\",DataAffärsmöjligheter[Viktad \nPrognos],0),\"\"),\"\")","v":{"v":0,"d":"0 kr"}},{"$f":"IFERROR(IF(DataAffärsmöjligheter[[#This Row],[Prognos \nStäng]] <>\"\",IF(DataAffärsmöjligheter[[#This Row],[Prognos \nStäng]] = \"Oktober\",DataAffärsmöjligheter[Viktad \nPrognos],0),\"\"),\"\")","v":{"v":0,"d":"0 kr"}},{"$f":"IFERROR(IF(DataAffärsmöjligheter[[#This Row],[Prognos \nStäng]] <>\"\",IF(DataAffärsmöjligheter[[#This Row],[Prognos \nStäng]] = \"November\",DataAffärsmöjligheter[Viktad \nPrognos],0),\"\"),\"\")","v":{"v":0,"d":"0 kr"}},{"$f":"IFERROR(IF(DataAffärsmöjligheter[[#This Row],[Prognos \nStäng]] <>\"\",IF(DataAffärsmöjligheter[[#This Row],[Prognos \nStäng]] = \"December\",DataAffärsmöjligheter[Viktad \nPrognos],0),\"\"),\"\")","v":{"v":0,"d":"0 kr"}}]
[null,{"$f":"IFERROR(IF(AND(DataAffärsmöjligheter[[#This Row],[Namn affärsmöjlighet]] <> \"\", ROW(Säljprognos[Namn affärsmöjlighet])<>SistaPost),DataAffärsmöjligheter[Namn affärsmöjlighet], \"\"),\"\")","v":""},{"$f":"IFERROR(IF(DataAffärsmöjligheter[[#This Row],[Prognos \nStäng]] <>\"\",IF(DataAffärsmöjligheter[[#This Row],[Prognos \nStäng]]= \"Januari\",DataAffärsmöjligheter[Viktad \nPrognos],0),\"\"),\"\")","v":""},{"$f":"IFERROR(IF(DataAffärsmöjligheter[[#This Row],[Prognos \nStäng]] <>\"\",IF(DataAffärsmöjligheter[[#This Row],[Prognos \nStäng]] = \"Februari\",DataAffärsmöjligheter[Viktad \nPrognos],0),\"\"),\"\")","v":""},{"$f":"IFERROR(IF(DataAffärsmöjligheter[[#This Row],[Prognos \nStäng]] <>\"\",IF(DataAffärsmöjligheter[[#This Row],[Prognos \nStäng]] = \"Mars\",DataAffärsmöjligheter[Viktad \nPrognos],0),\"\"),\"\")","v":""},{"$f":"IFERROR(IF(DataAffärsmöjligheter[[#This Row],[Prognos \nStäng]] <>\"\",IF(DataAffärsmöjligheter[[#This Row],[Prognos \nStäng]] = \"April\",DataAffärsmöjligheter[Viktad \nPrognos],0),\"\"),\"\")","v":""},{"$f":"IFERROR(IF(DataAffärsmöjligheter[[#This Row],[Prognos \nStäng]] <>\"\",IF(DataAffärsmöjligheter[[#This Row],[Prognos \nStäng]] = \"Maj\",DataAffärsmöjligheter[Viktad \nPrognos],0),\"\"),\"\")","v":""},{"$f":"IFERROR(IF(DataAffärsmöjligheter[[#This Row],[Prognos \nStäng]] <>\"\",IF(DataAffärsmöjligheter[[#This Row],[Prognos \nStäng]] = \"Juni\",DataAffärsmöjligheter[Viktad \nPrognos],0),\"\"),\"\")","v":""},{"$f":"IFERROR(IF(DataAffärsmöjligheter[[#This Row],[Prognos \nStäng]] <>\"\",IF(DataAffärsmöjligheter[[#This Row],[Prognos \nStäng]] = \"Juli\",DataAffärsmöjligheter[Viktad \nPrognos],0),\"\"),\"\")","v":""},{"$f":"IFERROR(IF(DataAffärsmöjligheter[[#This Row],[Prognos \nStäng]] <>\"\",IF(DataAffärsmöjligheter[[#This Row],[Prognos \nStäng]] = \"Augusti\",DataAffärsmöjligheter[Viktad \nPrognos],0),\"\"),\"\")","v":""},{"$f":"IFERROR(IF(DataAffärsmöjligheter[[#This Row],[Prognos \nStäng]] <>\"\",IF(DataAffärsmöjligheter[[#This Row],[Prognos \nStäng]] = \"September\",DataAffärsmöjligheter[Viktad \nPrognos],0),\"\"),\"\")","v":""},{"$f":"IFERROR(IF(DataAffärsmöjligheter[[#This Row],[Prognos \nStäng]] <>\"\",IF(DataAffärsmöjligheter[[#This Row],[Prognos \nStäng]] = \"Oktober\",DataAffärsmöjligheter[Viktad \nPrognos],0),\"\"),\"\")","v":""},{"$f":"IFERROR(IF(DataAffärsmöjligheter[[#This Row],[Prognos \nStäng]] <>\"\",IF(DataAffärsmöjligheter[[#This Row],[Prognos \nStäng]] = \"November\",DataAffärsmöjligheter[Viktad \nPrognos],0),\"\"),\"\")","v":""},{"$f":"IFERROR(IF(DataAffärsmöjligheter[[#This Row],[Prognos \nStäng]] <>\"\",IF(DataAffärsmöjligheter[[#This Row],[Prognos \nStäng]] = \"December\",DataAffärsmöjligheter[Viktad \nPrognos],0),\"\"),\"\")","v":""}]
[null,{"$f":"IFERROR(IF(AND(DataAffärsmöjligheter[[#This Row],[Namn affärsmöjlighet]] <> \"\", ROW(Säljprognos[Namn affärsmöjlighet])<>SistaPost),DataAffärsmöjligheter[Namn affärsmöjlighet], \"\"),\"\")","v":""},{"$f":"IFERROR(IF(DataAffärsmöjligheter[[#This Row],[Prognos \nStäng]] <>\"\",IF(DataAffärsmöjligheter[[#This Row],[Prognos \nStäng]]= \"Januari\",DataAffärsmöjligheter[Viktad \nPrognos],0),\"\"),\"\")","v":""},{"$f":"IFERROR(IF(DataAffärsmöjligheter[[#This Row],[Prognos \nStäng]] <>\"\",IF(DataAffärsmöjligheter[[#This Row],[Prognos \nStäng]] = \"Februari\",DataAffärsmöjligheter[Viktad \nPrognos],0),\"\"),\"\")","v":""},{"$f":"IFERROR(IF(DataAffärsmöjligheter[[#This Row],[Prognos \nStäng]] <>\"\",IF(DataAffärsmöjligheter[[#This Row],[Prognos \nStäng]] = \"Mars\",DataAffärsmöjligheter[Viktad \nPrognos],0),\"\"),\"\")","v":""},{"$f":"IFERROR(IF(DataAffärsmöjligheter[[#This Row],[Prognos \nStäng]] <>\"\",IF(DataAffärsmöjligheter[[#This Row],[Prognos \nStäng]] = \"April\",DataAffärsmöjligheter[Viktad \nPrognos],0),\"\"),\"\")","v":""},{"$f":"IFERROR(IF(DataAffärsmöjligheter[[#This Row],[Prognos \nStäng]] <>\"\",IF(DataAffärsmöjligheter[[#This Row],[Prognos \nStäng]] = \"Maj\",DataAffärsmöjligheter[Viktad \nPrognos],0),\"\"),\"\")","v":""},{"$f":"IFERROR(IF(DataAffärsmöjligheter[[#This Row],[Prognos \nStäng]] <>\"\",IF(DataAffärsmöjligheter[[#This Row],[Prognos \nStäng]] = \"Juni\",DataAffärsmöjligheter[Viktad \nPrognos],0),\"\"),\"\")","v":""},{"$f":"IFERROR(IF(DataAffärsmöjligheter[[#This Row],[Prognos \nStäng]] <>\"\",IF(DataAffärsmöjligheter[[#This Row],[Prognos \nStäng]] = \"Juli\",DataAffärsmöjligheter[Viktad \nPrognos],0),\"\"),\"\")","v":""},{"$f":"IFERROR(IF(DataAffärsmöjligheter[[#This Row],[Prognos \nStäng]] <>\"\",IF(DataAffärsmöjligheter[[#This Row],[Prognos \nStäng]] = \"Augusti\",DataAffärsmöjligheter[Viktad \nPrognos],0),\"\"),\"\")","v":""},{"$f":"IFERROR(IF(DataAffärsmöjligheter[[#This Row],[Prognos \nStäng]] <>\"\",IF(DataAffärsmöjligheter[[#This Row],[Prognos \nStäng]] = \"September\",DataAffärsmöjligheter[Viktad \nPrognos],0),\"\"),\"\")","v":""},{"$f":"IFERROR(IF(DataAffärsmöjligheter[[#This Row],[Prognos \nStäng]] <>\"\",IF(DataAffärsmöjligheter[[#This Row],[Prognos \nStäng]] = \"Oktober\",DataAffärsmöjligheter[Viktad \nPrognos],0),\"\"),\"\")","v":""},{"$f":"IFERROR(IF(DataAffärsmöjligheter[[#This Row],[Prognos \nStäng]] <>\"\",IF(DataAffärsmöjligheter[[#This Row],[Prognos \nStäng]] = \"November\",DataAffärsmöjligheter[Viktad \nPrognos],0),\"\"),\"\")","v":""},{"$f":"IFERROR(IF(DataAffärsmöjligheter[[#This Row],[Prognos \nStäng]] <>\"\",IF(DataAffärsmöjligheter[[#This Row],[Prognos \nStäng]] = \"December\",DataAffärsmöjligheter[Viktad \nPrognos],0),\"\"),\"\")","v":""}]
[null,{"$f":"IFERROR(IF(AND(DataAffärsmöjligheter[[#This Row],[Namn affärsmöjlighet]] <> \"\", ROW(Säljprognos[Namn affärsmöjlighet])<>SistaPost),DataAffärsmöjligheter[Namn affärsmöjlighet], \"\"),\"\")","v":""},{"$f":"IFERROR(IF(DataAffärsmöjligheter[[#This Row],[Prognos \nStäng]] <>\"\",IF(DataAffärsmöjligheter[[#This Row],[Prognos \nStäng]]= \"Januari\",DataAffärsmöjligheter[Viktad \nPrognos],0),\"\"),\"\")","v":""},{"$f":"IFERROR(IF(DataAffärsmöjligheter[[#This Row],[Prognos \nStäng]] <>\"\",IF(DataAffärsmöjligheter[[#This Row],[Prognos \nStäng]] = \"Februari\",DataAffärsmöjligheter[Viktad \nPrognos],0),\"\"),\"\")","v":""},{"$f":"IFERROR(IF(DataAffärsmöjligheter[[#This Row],[Prognos \nStäng]] <>\"\",IF(DataAffärsmöjligheter[[#This Row],[Prognos \nStäng]] = \"Mars\",DataAffärsmöjligheter[Viktad \nPrognos],0),\"\"),\"\")","v":""},{"$f":"IFERROR(IF(DataAffärsmöjligheter[[#This Row],[Prognos \nStäng]] <>\"\",IF(DataAffärsmöjligheter[[#This Row],[Prognos \nStäng]] = \"April\",DataAffärsmöjligheter[Viktad \nPrognos],0),\"\"),\"\")","v":""},{"$f":"IFERROR(IF(DataAffärsmöjligheter[[#This Row],[Prognos \nStäng]] <>\"\",IF(DataAffärsmöjligheter[[#This Row],[Prognos \nStäng]] = \"Maj\",DataAffärsmöjligheter[Viktad \nPrognos],0),\"\"),\"\")","v":""},{"$f":"IFERROR(IF(DataAffärsmöjligheter[[#This Row],[Prognos \nStäng]] <>\"\",IF(DataAffärsmöjligheter[[#This Row],[Prognos \nStäng]] = \"Juni\",DataAffärsmöjligheter[Viktad \nPrognos],0),\"\"),\"\")","v":""},{"$f":"IFERROR(IF(DataAffärsmöjligheter[[#This Row],[Prognos \nStäng]] <>\"\",IF(DataAffärsmöjligheter[[#This Row],[Prognos \nStäng]] = \"Juli\",DataAffärsmöjligheter[Viktad \nPrognos],0),\"\"),\"\")","v":""},{"$f":"IFERROR(IF(DataAffärsmöjligheter[[#This Row],[Prognos \nStäng]] <>\"\",IF(DataAffärsmöjligheter[[#This Row],[Prognos \nStäng]] = \"Augusti\",DataAffärsmöjligheter[Viktad \nPrognos],0),\"\"),\"\")","v":""},{"$f":"IFERROR(IF(DataAffärsmöjligheter[[#This Row],[Prognos \nStäng]] <>\"\",IF(DataAffärsmöjligheter[[#This Row],[Prognos \nStäng]] = \"September\",DataAffärsmöjligheter[Viktad \nPrognos],0),\"\"),\"\")","v":""},{"$f":"IFERROR(IF(DataAffärsmöjligheter[[#This Row],[Prognos \nStäng]] <>\"\",IF(DataAffärsmöjligheter[[#This Row],[Prognos \nStäng]] = \"Oktober\",DataAffärsmöjligheter[Viktad \nPrognos],0),\"\"),\"\")","v":""},{"$f":"IFERROR(IF(DataAffärsmöjligheter[[#This Row],[Prognos \nStäng]] <>\"\",IF(DataAffärsmöjligheter[[#This Row],[Prognos \nStäng]] = \"November\",DataAffärsmöjligheter[Viktad \nPrognos],0),\"\"),\"\")","v":""},{"$f":"IFERROR(IF(DataAffärsmöjligheter[[#This Row],[Prognos \nStäng]] <>\"\",IF(DataAffärsmöjligheter[[#This Row],[Prognos \nStäng]] = \"December\",DataAffärsmöjligheter[Viktad \nPrognos],0),\"\"),\"\")","v":""}]
[null,{"$f":"IFERROR(IF(AND(DataAffärsmöjligheter[[#This Row],[Namn affärsmöjlighet]] <> \"\", ROW(Säljprognos[Namn affärsmöjlighet])<>SistaPost),DataAffärsmöjligheter[Namn affärsmöjlighet], \"\"),\"\")","v":""},{"$f":"IFERROR(IF(DataAffärsmöjligheter[[#This Row],[Prognos \nStäng]] <>\"\",IF(DataAffärsmöjligheter[[#This Row],[Prognos \nStäng]]= \"Januari\",DataAffärsmöjligheter[Viktad \nPrognos],0),\"\"),\"\")","v":""},{"$f":"IFERROR(IF(DataAffärsmöjligheter[[#This Row],[Prognos \nStäng]] <>\"\",IF(DataAffärsmöjligheter[[#This Row],[Prognos \nStäng]] = \"Februari\",DataAffärsmöjligheter[Viktad \nPrognos],0),\"\"),\"\")","v":""},{"$f":"IFERROR(IF(DataAffärsmöjligheter[[#This Row],[Prognos \nStäng]] <>\"\",IF(DataAffärsmöjligheter[[#This Row],[Prognos \nStäng]] = \"Mars\",DataAffärsmöjligheter[Viktad \nPrognos],0),\"\"),\"\")","v":""},{"$f":"IFERROR(IF(DataAffärsmöjligheter[[#This Row],[Prognos \nStäng]] <>\"\",IF(DataAffärsmöjligheter[[#This Row],[Prognos \nStäng]] = \"April\",DataAffärsmöjligheter[Viktad \nPrognos],0),\"\"),\"\")","v":""},{"$f":"IFERROR(IF(DataAffärsmöjligheter[[#This Row],[Prognos \nStäng]] <>\"\",IF(DataAffärsmöjligheter[[#This Row],[Prognos \nStäng]] = \"Maj\",DataAffärsmöjligheter[Viktad \nPrognos],0),\"\"),\"\")","v":""},{"$f":"IFERROR(IF(DataAffärsmöjligheter[[#This Row],[Prognos \nStäng]] <>\"\",IF(DataAffärsmöjligheter[[#This Row],[Prognos \nStäng]] = \"Juni\",DataAffärsmöjligheter[Viktad \nPrognos],0),\"\"),\"\")","v":""},{"$f":"IFERROR(IF(DataAffärsmöjligheter[[#This Row],[Prognos \nStäng]] <>\"\",IF(DataAffärsmöjligheter[[#This Row],[Prognos \nStäng]] = \"Juli\",DataAffärsmöjligheter[Viktad \nPrognos],0),\"\"),\"\")","v":""},{"$f":"IFERROR(IF(DataAffärsmöjligheter[[#This Row],[Prognos \nStäng]] <>\"\",IF(DataAffärsmöjligheter[[#This Row],[Prognos \nStäng]] = \"Augusti\",DataAffärsmöjligheter[Viktad \nPrognos],0),\"\"),\"\")","v":""},{"$f":"IFERROR(IF(DataAffärsmöjligheter[[#This Row],[Prognos \nStäng]] <>\"\",IF(DataAffärsmöjligheter[[#This Row],[Prognos \nStäng]] = \"September\",DataAffärsmöjligheter[Viktad \nPrognos],0),\"\"),\"\")","v":""},{"$f":"IFERROR(IF(DataAffärsmöjligheter[[#This Row],[Prognos \nStäng]] <>\"\",IF(DataAffärsmöjligheter[[#This Row],[Prognos \nStäng]] = \"Oktober\",DataAffärsmöjligheter[Viktad \nPrognos],0),\"\"),\"\")","v":""},{"$f":"IFERROR(IF(DataAffärsmöjligheter[[#This Row],[Prognos \nStäng]] <>\"\",IF(DataAffärsmöjligheter[[#This Row],[Prognos \nStäng]] = \"November\",DataAffärsmöjligheter[Viktad \nPrognos],0),\"\"),\"\")","v":""},{"$f":"IFERROR(IF(DataAffärsmöjligheter[[#This Row],[Prognos \nStäng]] <>\"\",IF(DataAffärsmöjligheter[[#This Row],[Prognos \nStäng]] = \"December\",DataAffärsmöjligheter[Viktad \nPrognos],0),\"\"),\"\")","v":""}]
[null,{"$f":"IFERROR(IF(AND(DataAffärsmöjligheter[[#This Row],[Namn affärsmöjlighet]] <> \"\", ROW(Säljprognos[Namn affärsmöjlighet])<>SistaPost),DataAffärsmöjligheter[Namn affärsmöjlighet], \"\"),\"\")","v":""},{"$f":"IFERROR(IF(DataAffärsmöjligheter[[#This Row],[Prognos \nStäng]] <>\"\",IF(DataAffärsmöjligheter[[#This Row],[Prognos \nStäng]]= \"Januari\",DataAffärsmöjligheter[Viktad \nPrognos],0),\"\"),\"\")","v":""},{"$f":"IFERROR(IF(DataAffärsmöjligheter[[#This Row],[Prognos \nStäng]] <>\"\",IF(DataAffärsmöjligheter[[#This Row],[Prognos \nStäng]] = \"Februari\",DataAffärsmöjligheter[Viktad \nPrognos],0),\"\"),\"\")","v":""},{"$f":"IFERROR(IF(DataAffärsmöjligheter[[#This Row],[Prognos \nStäng]] <>\"\",IF(DataAffärsmöjligheter[[#This Row],[Prognos \nStäng]] = \"Mars\",DataAffärsmöjligheter[Viktad \nPrognos],0),\"\"),\"\")","v":""},{"$f":"IFERROR(IF(DataAffärsmöjligheter[[#This Row],[Prognos \nStäng]] <>\"\",IF(DataAffärsmöjligheter[[#This Row],[Prognos \nStäng]] = \"April\",DataAffärsmöjligheter[Viktad \nPrognos],0),\"\"),\"\")","v":""},{"$f":"IFERROR(IF(DataAffärsmöjligheter[[#This Row],[Prognos \nStäng]] <>\"\",IF(DataAffärsmöjligheter[[#This Row],[Prognos \nStäng]] = \"Maj\",DataAffärsmöjligheter[Viktad \nPrognos],0),\"\"),\"\")","v":""},{"$f":"IFERROR(IF(DataAffärsmöjligheter[[#This Row],[Prognos \nStäng]] <>\"\",IF(DataAffärsmöjligheter[[#This Row],[Prognos \nStäng]] = \"Juni\",DataAffärsmöjligheter[Viktad \nPrognos],0),\"\"),\"\")","v":""},{"$f":"IFERROR(IF(DataAffärsmöjligheter[[#This Row],[Prognos \nStäng]] <>\"\",IF(DataAffärsmöjligheter[[#This Row],[Prognos \nStäng]] = \"Juli\",DataAffärsmöjligheter[Viktad \nPrognos],0),\"\"),\"\")","v":""},{"$f":"IFERROR(IF(DataAffärsmöjligheter[[#This Row],[Prognos \nStäng]] <>\"\",IF(DataAffärsmöjligheter[[#This Row],[Prognos \nStäng]] = \"Augusti\",DataAffärsmöjligheter[Viktad \nPrognos],0),\"\"),\"\")","v":""},{"$f":"IFERROR(IF(DataAffärsmöjligheter[[#This Row],[Prognos \nStäng]] <>\"\",IF(DataAffärsmöjligheter[[#This Row],[Prognos \nStäng]] = \"September\",DataAffärsmöjligheter[Viktad \nPrognos],0),\"\"),\"\")","v":""},{"$f":"IFERROR(IF(DataAffärsmöjligheter[[#This Row],[Prognos \nStäng]] <>\"\",IF(DataAffärsmöjligheter[[#This Row],[Prognos \nStäng]] = \"Oktober\",DataAffärsmöjligheter[Viktad \nPrognos],0),\"\"),\"\")","v":""},{"$f":"IFERROR(IF(DataAffärsmöjligheter[[#This Row],[Prognos \nStäng]] <>\"\",IF(DataAffärsmöjligheter[[#This Row],[Prognos \nStäng]] = \"November\",DataAffärsmöjligheter[Viktad \nPrognos],0),\"\"),\"\")","v":""},{"$f":"IFERROR(IF(DataAffärsmöjligheter[[#This Row],[Prognos \nStäng]] <>\"\",IF(DataAffärsmöjligheter[[#This Row],[Prognos \nStäng]] = \"December\",DataAffärsmöjligheter[Viktad \nPrognos],0),\"\"),\"\")","v":""}]
[null,{"$f":"IFERROR(IF(AND(DataAffärsmöjligheter[[#This Row],[Namn affärsmöjlighet]] <> \"\", ROW(Säljprognos[Namn affärsmöjlighet])<>SistaPost),DataAffärsmöjligheter[Namn affärsmöjlighet], \"\"),\"\")","v":""},{"$f":"IFERROR(IF(DataAffärsmöjligheter[[#This Row],[Prognos \nStäng]] <>\"\",IF(DataAffärsmöjligheter[[#This Row],[Prognos \nStäng]]= \"Januari\",DataAffärsmöjligheter[Viktad \nPrognos],0),\"\"),\"\")","v":""},{"$f":"IFERROR(IF(DataAffärsmöjligheter[[#This Row],[Prognos \nStäng]] <>\"\",IF(DataAffärsmöjligheter[[#This Row],[Prognos \nStäng]] = \"Februari\",DataAffärsmöjligheter[Viktad \nPrognos],0),\"\"),\"\")","v":""},{"$f":"IFERROR(IF(DataAffärsmöjligheter[[#This Row],[Prognos \nStäng]] <>\"\",IF(DataAffärsmöjligheter[[#This Row],[Prognos \nStäng]] = \"Mars\",DataAffärsmöjligheter[Viktad \nPrognos],0),\"\"),\"\")","v":""},{"$f":"IFERROR(IF(DataAffärsmöjligheter[[#This Row],[Prognos \nStäng]] <>\"\",IF(DataAffärsmöjligheter[[#This Row],[Prognos \nStäng]] = \"April\",DataAffärsmöjligheter[Viktad \nPrognos],0),\"\"),\"\")","v":""},{"$f":"IFERROR(IF(DataAffärsmöjligheter[[#This Row],[Prognos \nStäng]] <>\"\",IF(DataAffärsmöjligheter[[#This Row],[Prognos \nStäng]] = \"Maj\",DataAffärsmöjligheter[Viktad \nPrognos],0),\"\"),\"\")","v":""},{"$f":"IFERROR(IF(DataAffärsmöjligheter[[#This Row],[Prognos \nStäng]] <>\"\",IF(DataAffärsmöjligheter[[#This Row],[Prognos \nStäng]] = \"Juni\",DataAffärsmöjligheter[Viktad \nPrognos],0),\"\"),\"\")","v":""},{"$f":"IFERROR(IF(DataAffärsmöjligheter[[#This Row],[Prognos \nStäng]] <>\"\",IF(DataAffärsmöjligheter[[#This Row],[Prognos \nStäng]] = \"Juli\",DataAffärsmöjligheter[Viktad \nPrognos],0),\"\"),\"\")","v":""},{"$f":"IFERROR(IF(DataAffärsmöjligheter[[#This Row],[Prognos \nStäng]] <>\"\",IF(DataAffärsmöjligheter[[#This Row],[Prognos \nStäng]] = \"Augusti\",DataAffärsmöjligheter[Viktad \nPrognos],0),\"\"),\"\")","v":""},{"$f":"IFERROR(IF(DataAffärsmöjligheter[[#This Row],[Prognos \nStäng]] <>\"\",IF(DataAffärsmöjligheter[[#This Row],[Prognos \nStäng]] = \"September\",DataAffärsmöjligheter[Viktad \nPrognos],0),\"\"),\"\")","v":""},{"$f":"IFERROR(IF(DataAffärsmöjligheter[[#This Row],[Prognos \nStäng]] <>\"\",IF(DataAffärsmöjligheter[[#This Row],[Prognos \nStäng]] = \"Oktober\",DataAffärsmöjligheter[Viktad \nPrognos],0),\"\"),\"\")","v":""},{"$f":"IFERROR(IF(DataAffärsmöjligheter[[#This Row],[Prognos \nStäng]] <>\"\",IF(DataAffärsmöjligheter[[#This Row],[Prognos \nStäng]] = \"November\",DataAffärsmöjligheter[Viktad \nPrognos],0),\"\"),\"\")","v":""},{"$f":"IFERROR(IF(DataAffärsmöjligheter[[#This Row],[Prognos \nStäng]] <>\"\",IF(DataAffärsmöjligheter[[#This Row],[Prognos \nStäng]] = \"December\",DataAffärsmöjligheter[Viktad \nPrognos],0),\"\"),\"\")","v":""}]
[null,{"$f":"IFERROR(IF(AND(DataAffärsmöjligheter[[#This Row],[Namn affärsmöjlighet]] <> \"\", ROW(Säljprognos[Namn affärsmöjlighet])<>SistaPost),DataAffärsmöjligheter[Namn affärsmöjlighet], \"\"),\"\")","v":""},{"$f":"IFERROR(IF(DataAffärsmöjligheter[[#This Row],[Prognos \nStäng]] <>\"\",IF(DataAffärsmöjligheter[[#This Row],[Prognos \nStäng]]= \"Januari\",DataAffärsmöjligheter[Viktad \nPrognos],0),\"\"),\"\")","v":""},{"$f":"IFERROR(IF(DataAffärsmöjligheter[[#This Row],[Prognos \nStäng]] <>\"\",IF(DataAffärsmöjligheter[[#This Row],[Prognos \nStäng]] = \"Februari\",DataAffärsmöjligheter[Viktad \nPrognos],0),\"\"),\"\")","v":""},{"$f":"IFERROR(IF(DataAffärsmöjligheter[[#This Row],[Prognos \nStäng]] <>\"\",IF(DataAffärsmöjligheter[[#This Row],[Prognos \nStäng]] = \"Mars\",DataAffärsmöjligheter[Viktad \nPrognos],0),\"\"),\"\")","v":""},{"$f":"IFERROR(IF(DataAffärsmöjligheter[[#This Row],[Prognos \nStäng]] <>\"\",IF(DataAffärsmöjligheter[[#This Row],[Prognos \nStäng]] = \"April\",DataAffärsmöjligheter[Viktad \nPrognos],0),\"\"),\"\")","v":""},{"$f":"IFERROR(IF(DataAffärsmöjligheter[[#This Row],[Prognos \nStäng]] <>\"\",IF(DataAffärsmöjligheter[[#This Row],[Prognos \nStäng]] = \"Maj\",DataAffärsmöjligheter[Viktad \nPrognos],0),\"\"),\"\")","v":""},{"$f":"IFERROR(IF(DataAffärsmöjligheter[[#This Row],[Prognos \nStäng]] <>\"\",IF(DataAffärsmöjligheter[[#This Row],[Prognos \nStäng]] = \"Juni\",DataAffärsmöjligheter[Viktad \nPrognos],0),\"\"),\"\")","v":""},{"$f":"IFERROR(IF(DataAffärsmöjligheter[[#This Row],[Prognos \nStäng]] <>\"\",IF(DataAffärsmöjligheter[[#This Row],[Prognos \nStäng]] = \"Juli\",DataAffärsmöjligheter[Viktad \nPrognos],0),\"\"),\"\")","v":""},{"$f":"IFERROR(IF(DataAffärsmöjligheter[[#This Row],[Prognos \nStäng]] <>\"\",IF(DataAffärsmöjligheter[[#This Row],[Prognos \nStäng]] = \"Augusti\",DataAffärsmöjligheter[Viktad \nPrognos],0),\"\"),\"\")","v":""},{"$f":"IFERROR(IF(DataAffärsmöjligheter[[#This Row],[Prognos \nStäng]] <>\"\",IF(DataAffärsmöjligheter[[#This Row],[Prognos \nStäng]] = \"September\",DataAffärsmöjligheter[Viktad \nPrognos],0),\"\"),\"\")","v":""},{"$f":"IFERROR(IF(DataAffärsmöjligheter[[#This Row],[Prognos \nStäng]] <>\"\",IF(DataAffärsmöjligheter[[#This Row],[Prognos \nStäng]] = \"Oktober\",DataAffärsmöjligheter[Viktad \nPrognos],0),\"\"),\"\")","v":""},{"$f":"IFERROR(IF(DataAffärsmöjligheter[[#This Row],[Prognos \nStäng]] <>\"\",IF(DataAffärsmöjligheter[[#This Row],[Prognos \nStäng]] = \"November\",DataAffärsmöjligheter[Viktad \nPrognos],0),\"\"),\"\")","v":""},{"$f":"IFERROR(IF(DataAffärsmöjligheter[[#This Row],[Prognos \nStäng]] <>\"\",IF(DataAffärsmöjligheter[[#This Row],[Prognos \nStäng]] = \"December\",DataAffärsmöjligheter[Viktad \nPrognos],0),\"\"),\"\")","v":""}]
[null,{"$f":"IFERROR(IF(AND(DataAffärsmöjligheter[[#This Row],[Namn affärsmöjlighet]] <> \"\", ROW(Säljprognos[Namn affärsmöjlighet])<>SistaPost),DataAffärsmöjligheter[Namn affärsmöjlighet], \"\"),\"\")","v":""},{"$f":"IFERROR(IF(DataAffärsmöjligheter[[#This Row],[Prognos \nStäng]] <>\"\",IF(DataAffärsmöjligheter[[#This Row],[Prognos \nStäng]]= \"Januari\",DataAffärsmöjligheter[Viktad \nPrognos],0),\"\"),\"\")","v":""},{"$f":"IFERROR(IF(DataAffärsmöjligheter[[#This Row],[Prognos \nStäng]] <>\"\",IF(DataAffärsmöjligheter[[#This Row],[Prognos \nStäng]] = \"Februari\",DataAffärsmöjligheter[Viktad \nPrognos],0),\"\"),\"\")","v":""},{"$f":"IFERROR(IF(DataAffärsmöjligheter[[#This Row],[Prognos \nStäng]] <>\"\",IF(DataAffärsmöjligheter[[#This Row],[Prognos \nStäng]] = \"Mars\",DataAffärsmöjligheter[Viktad \nPrognos],0),\"\"),\"\")","v":""},{"$f":"IFERROR(IF(DataAffärsmöjligheter[[#This Row],[Prognos \nStäng]] <>\"\",IF(DataAffärsmöjligheter[[#This Row],[Prognos \nStäng]] = \"April\",DataAffärsmöjligheter[Viktad \nPrognos],0),\"\"),\"\")","v":""},{"$f":"IFERROR(IF(DataAffärsmöjligheter[[#This Row],[Prognos \nStäng]] <>\"\",IF(DataAffärsmöjligheter[[#This Row],[Prognos \nStäng]] = \"Maj\",DataAffärsmöjligheter[Viktad \nPrognos],0),\"\"),\"\")","v":""},{"$f":"IFERROR(IF(DataAffärsmöjligheter[[#This Row],[Prognos \nStäng]] <>\"\",IF(DataAffärsmöjligheter[[#This Row],[Prognos \nStäng]] = \"Juni\",DataAffärsmöjligheter[Viktad \nPrognos],0),\"\"),\"\")","v":""},{"$f":"IFERROR(IF(DataAffärsmöjligheter[[#This Row],[Prognos \nStäng]] <>\"\",IF(DataAffärsmöjligheter[[#This Row],[Prognos \nStäng]] = \"Juli\",DataAffärsmöjligheter[Viktad \nPrognos],0),\"\"),\"\")","v":""},{"$f":"IFERROR(IF(DataAffärsmöjligheter[[#This Row],[Prognos \nStäng]] <>\"\",IF(DataAffärsmöjligheter[[#This Row],[Prognos \nStäng]] = \"Augusti\",DataAffärsmöjligheter[Viktad \nPrognos],0),\"\"),\"\")","v":""},{"$f":"IFERROR(IF(DataAffärsmöjligheter[[#This Row],[Prognos \nStäng]] <>\"\",IF(DataAffärsmöjligheter[[#This Row],[Prognos \nStäng]] = \"September\",DataAffärsmöjligheter[Viktad \nPrognos],0),\"\"),\"\")","v":""},{"$f":"IFERROR(IF(DataAffärsmöjligheter[[#This Row],[Prognos \nStäng]] <>\"\",IF(DataAffärsmöjligheter[[#This Row],[Prognos \nStäng]] = \"Oktober\",DataAffärsmöjligheter[Viktad \nPrognos],0),\"\"),\"\")","v":""},{"$f":"IFERROR(IF(DataAffärsmöjligheter[[#This Row],[Prognos \nStäng]] <>\"\",IF(DataAffärsmöjligheter[[#This Row],[Prognos \nStäng]] = \"November\",DataAffärsmöjligheter[Viktad \nPrognos],0),\"\"),\"\")","v":""},{"$f":"IFERROR(IF(DataAffärsmöjligheter[[#This Row],[Prognos \nStäng]] <>\"\",IF(DataAffärsmöjligheter[[#This Row],[Prognos \nStäng]] = \"December\",DataAffärsmöjligheter[Viktad \nPrognos],0),\"\"),\"\")","v":""}]
[null,{"$f":"IFERROR(IF(AND(DataAffärsmöjligheter[[#This Row],[Namn affärsmöjlighet]] <> \"\", ROW(Säljprognos[Namn affärsmöjlighet])<>SistaPost),DataAffärsmöjligheter[Namn affärsmöjlighet], \"\"),\"\")","v":""},{"$f":"IFERROR(IF(DataAffärsmöjligheter[[#This Row],[Prognos \nStäng]] <>\"\",IF(DataAffärsmöjligheter[[#This Row],[Prognos \nStäng]]= \"Januari\",DataAffärsmöjligheter[Viktad \nPrognos],0),\"\"),\"\")","v":""},{"$f":"IFERROR(IF(DataAffärsmöjligheter[[#This Row],[Prognos \nStäng]] <>\"\",IF(DataAffärsmöjligheter[[#This Row],[Prognos \nStäng]] = \"Februari\",DataAffärsmöjligheter[Viktad \nPrognos],0),\"\"),\"\")","v":""},{"$f":"IFERROR(IF(DataAffärsmöjligheter[[#This Row],[Prognos \nStäng]] <>\"\",IF(DataAffärsmöjligheter[[#This Row],[Prognos \nStäng]] = \"Mars\",DataAffärsmöjligheter[Viktad \nPrognos],0),\"\"),\"\")","v":""},{"$f":"IFERROR(IF(DataAffärsmöjligheter[[#This Row],[Prognos \nStäng]] <>\"\",IF(DataAffärsmöjligheter[[#This Row],[Prognos \nStäng]] = \"April\",DataAffärsmöjligheter[Viktad \nPrognos],0),\"\"),\"\")","v":""},{"$f":"IFERROR(IF(DataAffärsmöjligheter[[#This Row],[Prognos \nStäng]] <>\"\",IF(DataAffärsmöjligheter[[#This Row],[Prognos \nStäng]] = \"Maj\",DataAffärsmöjligheter[Viktad \nPrognos],0),\"\"),\"\")","v":""},{"$f":"IFERROR(IF(DataAffärsmöjligheter[[#This Row],[Prognos \nStäng]] <>\"\",IF(DataAffärsmöjligheter[[#This Row],[Prognos \nStäng]] = \"Juni\",DataAffärsmöjligheter[Viktad \nPrognos],0),\"\"),\"\")","v":""},{"$f":"IFERROR(IF(DataAffärsmöjligheter[[#This Row],[Prognos \nStäng]] <>\"\",IF(DataAffärsmöjligheter[[#This Row],[Prognos \nStäng]] = \"Juli\",DataAffärsmöjligheter[Viktad \nPrognos],0),\"\"),\"\")","v":""},{"$f":"IFERROR(IF(DataAffärsmöjligheter[[#This Row],[Prognos \nStäng]] <>\"\",IF(DataAffärsmöjligheter[[#This Row],[Prognos \nStäng]] = \"Augusti\",DataAffärsmöjligheter[Viktad \nPrognos],0),\"\"),\"\")","v":""},{"$f":"IFERROR(IF(DataAffärsmöjligheter[[#This Row],[Prognos \nStäng]] <>\"\",IF(DataAffärsmöjligheter[[#This Row],[Prognos \nStäng]] = \"September\",DataAffärsmöjligheter[Viktad \nPrognos],0),\"\"),\"\")","v":""},{"$f":"IFERROR(IF(DataAffärsmöjligheter[[#This Row],[Prognos \nStäng]] <>\"\",IF(DataAffärsmöjligheter[[#This Row],[Prognos \nStäng]] = \"Oktober\",DataAffärsmöjligheter[Viktad \nPrognos],0),\"\"),\"\")","v":""},{"$f":"IFERROR(IF(DataAffärsmöjligheter[[#This Row],[Prognos \nStäng]] <>\"\",IF(DataAffärsmöjligheter[[#This Row],[Prognos \nStäng]] = \"November\",DataAffärsmöjligheter[Viktad \nPrognos],0),\"\"),\"\")","v":""},{"$f":"IFERROR(IF(DataAffärsmöjligheter[[#This Row],[Prognos \nStäng]] <>\"\",IF(DataAffärsmöjligheter[[#This Row],[Prognos \nStäng]] = \"December\",DataAffärsmöjligheter[Viktad \nPrognos],0),\"\"),\"\")","v":""}]
[null,{"$f":"IFERROR(IF(AND(DataAffärsmöjligheter[[#This Row],[Namn affärsmöjlighet]] <> \"\", ROW(Säljprognos[Namn affärsmöjlighet])<>SistaPost),DataAffärsmöjligheter[Namn affärsmöjlighet], \"\"),\"\")","v":""},{"$f":"IFERROR(IF(DataAffärsmöjligheter[[#This Row],[Prognos \nStäng]] <>\"\",IF(DataAffärsmöjligheter[[#This Row],[Prognos \nStäng]]= \"Januari\",DataAffärsmöjligheter[Viktad \nPrognos],0),\"\"),\"\")","v":""},{"$f":"IFERROR(IF(DataAffärsmöjligheter[[#This Row],[Prognos \nStäng]] <>\"\",IF(DataAffärsmöjligheter[[#This Row],[Prognos \nStäng]] = \"Februari\",DataAffärsmöjligheter[Viktad \nPrognos],0),\"\"),\"\")","v":""},{"$f":"IFERROR(IF(DataAffärsmöjligheter[[#This Row],[Prognos \nStäng]] <>\"\",IF(DataAffärsmöjligheter[[#This Row],[Prognos \nStäng]] = \"Mars\",DataAffärsmöjligheter[Viktad \nPrognos],0),\"\"),\"\")","v":""},{"$f":"IFERROR(IF(DataAffärsmöjligheter[[#This Row],[Prognos \nStäng]] <>\"\",IF(DataAffärsmöjligheter[[#This Row],[Prognos \nStäng]] = \"April\",DataAffärsmöjligheter[Viktad \nPrognos],0),\"\"),\"\")","v":""},{"$f":"IFERROR(IF(DataAffärsmöjligheter[[#This Row],[Prognos \nStäng]] <>\"\",IF(DataAffärsmöjligheter[[#This Row],[Prognos \nStäng]] = \"Maj\",DataAffärsmöjligheter[Viktad \nPrognos],0),\"\"),\"\")","v":""},{"$f":"IFERROR(IF(DataAffärsmöjligheter[[#This Row],[Prognos \nStäng]] <>\"\",IF(DataAffärsmöjligheter[[#This Row],[Prognos \nStäng]] = \"Juni\",DataAffärsmöjligheter[Viktad \nPrognos],0),\"\"),\"\")","v":""},{"$f":"IFERROR(IF(DataAffärsmöjligheter[[#This Row],[Prognos \nStäng]] <>\"\",IF(DataAffärsmöjligheter[[#This Row],[Prognos \nStäng]] = \"Juli\",DataAffärsmöjligheter[Viktad \nPrognos],0),\"\"),\"\")","v":""},{"$f":"IFERROR(IF(DataAffärsmöjligheter[[#This Row],[Prognos \nStäng]] <>\"\",IF(DataAffärsmöjligheter[[#This Row],[Prognos \nStäng]] = \"Augusti\",DataAffärsmöjligheter[Viktad \nPrognos],0),\"\"),\"\")","v":""},{"$f":"IFERROR(IF(DataAffärsmöjligheter[[#This Row],[Prognos \nStäng]] <>\"\",IF(DataAffärsmöjligheter[[#This Row],[Prognos \nStäng]] = \"September\",DataAffärsmöjligheter[Viktad \nPrognos],0),\"\"),\"\")","v":""},{"$f":"IFERROR(IF(DataAffärsmöjligheter[[#This Row],[Prognos \nStäng]] <>\"\",IF(DataAffärsmöjligheter[[#This Row],[Prognos \nStäng]] = \"Oktober\",DataAffärsmöjligheter[Viktad \nPrognos],0),\"\"),\"\")","v":""},{"$f":"IFERROR(IF(DataAffärsmöjligheter[[#This Row],[Prognos \nStäng]] <>\"\",IF(DataAffärsmöjligheter[[#This Row],[Prognos \nStäng]] = \"November\",DataAffärsmöjligheter[Viktad \nPrognos],0),\"\"),\"\")","v":""},{"$f":"IFERROR(IF(DataAffärsmöjligheter[[#This Row],[Prognos \nStäng]] <>\"\",IF(DataAffärsmöjligheter[[#This Row],[Prognos \nStäng]] = \"December\",DataAffärsmöjligheter[Viktad \nPrognos],0),\"\"),\"\")","v":""}]
[null,{"$f":"IFERROR(IF(AND(DataAffärsmöjligheter[[#This Row],[Namn affärsmöjlighet]] <> \"\", ROW(Säljprognos[Namn affärsmöjlighet])<>SistaPost),DataAffärsmöjligheter[Namn affärsmöjlighet], \"\"),\"\")","v":""},{"$f":"IFERROR(IF(DataAffärsmöjligheter[[#This Row],[Prognos \nStäng]] <>\"\",IF(DataAffärsmöjligheter[[#This Row],[Prognos \nStäng]]= \"Januari\",DataAffärsmöjligheter[Viktad \nPrognos],0),\"\"),\"\")","v":""},{"$f":"IFERROR(IF(DataAffärsmöjligheter[[#This Row],[Prognos \nStäng]] <>\"\",IF(DataAffärsmöjligheter[[#This Row],[Prognos \nStäng]] = \"Februari\",DataAffärsmöjligheter[Viktad \nPrognos],0),\"\"),\"\")","v":""},{"$f":"IFERROR(IF(DataAffärsmöjligheter[[#This Row],[Prognos \nStäng]] <>\"\",IF(DataAffärsmöjligheter[[#This Row],[Prognos \nStäng]] = \"Mars\",DataAffärsmöjligheter[Viktad \nPrognos],0),\"\"),\"\")","v":""},{"$f":"IFERROR(IF(DataAffärsmöjligheter[[#This Row],[Prognos \nStäng]] <>\"\",IF(DataAffärsmöjligheter[[#This Row],[Prognos \nStäng]] = \"April\",DataAffärsmöjligheter[Viktad \nPrognos],0),\"\"),\"\")","v":""},{"$f":"IFERROR(IF(DataAffärsmöjligheter[[#This Row],[Prognos \nStäng]] <>\"\",IF(DataAffärsmöjligheter[[#This Row],[Prognos \nStäng]] = \"Maj\",DataAffärsmöjligheter[Viktad \nPrognos],0),\"\"),\"\")","v":""},{"$f":"IFERROR(IF(DataAffärsmöjligheter[[#This Row],[Prognos \nStäng]] <>\"\",IF(DataAffärsmöjligheter[[#This Row],[Prognos \nStäng]] = \"Juni\",DataAffärsmöjligheter[Viktad \nPrognos],0),\"\"),\"\")","v":""},{"$f":"IFERROR(IF(DataAffärsmöjligheter[[#This Row],[Prognos \nStäng]] <>\"\",IF(DataAffärsmöjligheter[[#This Row],[Prognos \nStäng]] = \"Juli\",DataAffärsmöjligheter[Viktad \nPrognos],0),\"\"),\"\")","v":""},{"$f":"IFERROR(IF(DataAffärsmöjligheter[[#This Row],[Prognos \nStäng]] <>\"\",IF(DataAffärsmöjligheter[[#This Row],[Prognos \nStäng]] = \"Augusti\",DataAffärsmöjligheter[Viktad \nPrognos],0),\"\"),\"\")","v":""},{"$f":"IFERROR(IF(DataAffärsmöjligheter[[#This Row],[Prognos \nStäng]] <>\"\",IF(DataAffärsmöjligheter[[#This Row],[Prognos \nStäng]] = \"September\",DataAffärsmöjligheter[Viktad \nPrognos],0),\"\"),\"\")","v":""},{"$f":"IFERROR(IF(DataAffärsmöjligheter[[#This Row],[Prognos \nStäng]] <>\"\",IF(DataAffärsmöjligheter[[#This Row],[Prognos \nStäng]] = \"Oktober\",DataAffärsmöjligheter[Viktad \nPrognos],0),\"\"),\"\")","v":""},{"$f":"IFERROR(IF(DataAffärsmöjligheter[[#This Row],[Prognos \nStäng]] <>\"\",IF(DataAffärsmöjligheter[[#This Row],[Prognos \nStäng]] = \"November\",DataAffärsmöjligheter[Viktad \nPrognos],0),\"\"),\"\")","v":""},{"$f":"IFERROR(IF(DataAffärsmöjligheter[[#This Row],[Prognos \nStäng]] <>\"\",IF(DataAffärsmöjligheter[[#This Row],[Prognos \nStäng]] = \"December\",DataAffärsmöjligheter[Viktad \nPrognos],0),\"\"),\"\")","v":""}]
[null,"Summa",{"$f":"SUBTOTAL(109,Säljprognos[Januari \nPrognos])","v":{"v":270000,"d":"270,000 kr"}},{"$f":"SUBTOTAL(109,Säljprognos[Februari \nPrognos])","v":{"v":20000,"d":"20,000 kr"}},{"$f":"SUBTOTAL(109,Säljprognos[Mars \nPrognos])","v":{"v":20000,"d":"20,000 kr"}},{"$f":"SUBTOTAL(109,Säljprognos[April \nPrognos])","v":{"v":0,"d":"0 kr"}},{"$f":"SUBTOTAL(109,Säljprognos[Maj \nPrognos])","v":{"v":0,"d":"0 kr"}},{"$f":"SUBTOTAL(109,Säljprognos[Juni \nPrognos])","v":{"v":0,"d":"0 kr"}},{"$f":"SUBTOTAL(109,Säljprognos[Juli \nPrognos])","v":{"v":0,"d":"0 kr"}},{"$f":"SUBTOTAL(109,Säljprognos[Augusti \nPrognos])","v":{"v":0,"d":"0 kr"}},{"$f":"SUBTOTAL(109,Säljprognos[September \nPrognos])","v":{"v":0,"d":"0 kr"}},{"$f":"SUBTOTAL(109,Säljprognos[Oktober \nPrognos])","v":{"v":0,"d":"0 kr"}},{"$f":"SUBTOTAL(109,Säljprognos[November \nPrognos])","v":{"v":0,"d":"0 kr"}},{"$f":"SUBTOTAL(109,Säljprognos[December \nPrognos])","v":{"v":0,"d":"0 kr"}}]
[null,"Kumulativ summa",{"$f":"C20","v":{"v":270000,"d":"270,000 kr"}},{"$f":"C21+D20","v":{"v":290000,"d":"290,000 kr"}},{"$f":"D21+E20","v":{"v":310000,"d":"310,000 kr"}},{"$f":"E21+F20","v":{"v":310000,"d":"310,000 kr"}},{"$f":"F21+G20","v":{"v":310000,"d":"310,000 kr"}},{"$f":"G21+H20","v":{"v":310000,"d":"310,000 kr"}},{"$f":"H21+I20","v":{"v":310000,"d":"310,000 kr"}},{"$f":"I21+J20","v":{"v":310000,"d":"310,000 kr"}},{"$f":"J21+K20","v":{"v":310000,"d":"310,000 kr"}},{"$f":"K21+L20","v":{"v":310000,"d":"310,000 kr"}},{"$f":"L21+M20","v":{"v":310000,"d":"310,000 kr"}},{"$f":"M21+N20","v":{"v":310000,"d":"310,000 kr"}}]

{"sheet":"Månatlig viktad prognos","index":2,"n_rows":3,"n_cols":2,"rows_kept":3}
[null,{"$f":"Företagsnamn","v":"Företagsnamn"}]
[null,"Månatlig viktad prognos"]
[null," "]